bitfinex/quotes_SOLUSD_20241013
["timestamp","ask_amount","ask_price","bid_price","bid_amount"]
[1728853661561,8.53617349,146.44,146.4,17.076]
[1728853662387,8.53617349,146.44,146.4,25.10768224]
[1728853662696,8.53617349,146.44,146.4,23.9065]
[1728853665887,8.53617349,146.44,146.4,25.10767521]
[1728853666389,8.01693219,146.45,146.4,25.10767521]
[1728853666588,2.75216989,146.44,146.4,35.34286685]
[1728853666891,1.70730138,146.44,146.4,23.9065]
[1728853667390,1.70730194,146.44,146.4,23.9065]
[1728853675200,2.75284275,146.43,146.4,23.9065]
[1728853675495,1.70730194,146.44,146.4,23.9065]
[1728853675683,2.75284275,146.43,146.4,23.9065]
[1728853675884,1.70730194,146.44,146.4,23.9065]
[1728853676079,2.75289597,146.43,146.4,23.9065]
[1728853676285,6.8283,146.45,146.4,23.9065]
[1728853676489,1.18862794,146.43,146.4,23.9065]
[1728853683394,1.18862794,146.43,146.41,1.20086663]
[1728853683587,1.18862794,146.43,146.4,23.9065]
[1728853684206,1.18862794,146.43,146.41,1.20086954]
[1728853685118,1.18862794,146.43,146.4,23.9065]
[1728853686990,1.18862794,146.43,146.41,1.20086274]
[1728853689716,2.75635962,146.42,146.4,35.34286685]
[1728853689921,1.18862794,146.43,146.4,23.9065]
[1728853690121,2.75635952,146.42,146.4,23.9065]
[1728853690414,1.18862794,146.43,146.4,23.9065]
[1728853690620,2.75663648,146.42,146.4,23.9065]
[1728853690810,1.18862794,146.43,146.4,23.9065]
[1728853691009,2.75663648,146.42,146.4,23.9065]
[1728853691208,1.18862794,146.43,146.4,23.9065]
[1728853691527,2.75692705,146.42,146.4,23.9065]
[1728853691690,1.18862794,146.43,146.4,23.9065]
[1728853691891,2.75692715,146.42,146.4,23.9065]
[1728853692112,1.18862794,146.43,146.4,23.9065]
[1728853692308,2.75723099,146.42,146.4,23.9065]
[1728853692617,1.18862794,146.43,146.4,23.9065]
[1728853692817,2.75723089,146.42,146.41,1.20087688]
[1728853693185,2.75723089,146.42,146.4,25.10738026]
[1728853693385,1.18862794,146.43,146.4,25.10738026]
[1728853693590,2.75731845,146.42,146.4,25.10738026]
[1728853693815,1.18862794,146.43,146.4,25.10738026]
[1728853694014,2.75731845,146.42,146.4,25.10738026]
[1728853694198,1.18862794,146.43,146.4,25.10738026]
[1728853694525,2.75742399,146.42,146.4,23.9065]
[1728853694817,1.18862794,146.43,146.4,23.9065]
[1728853695020,2.75749326,146.42,146.4,23.9065]
[1728853695199,1.18862794,146.43,146.4,23.9065]
[1728853695394,2.75779166,146.42,146.4,23.9065]
[1728853695715,1.18862794,146.43,146.4,23.9065]
[1728853695895,2.75778884,146.42,146.4,23.9065]
[1728853696095,1.18862794,146.43,146.4,23.9065]
[1728853696298,2.75811622,146.42,146.4,23.9065]
[1728853696496,2.75811622,146.41,146.4,23.9065]
[1728853698196,2.75811622,146.41,146.4,25.10739701]
[1728853698998,2.75811622,146.41,146.4,23.9065]
[1728853700019,2.75811622,146.41,146.4,25.10737678]
[1728853700724,2.75811622,146.41,146.4,36.54374363]
[1728853701906,2.76026483,146.41,146.4,36.54374363]
[1728853702102,2.76026483,146.41,146.4,56.54374363]
[1728853702307,2.76026483,146.41,146.4,96.09172763]
[1728853702505,8.53420558,146.48,146.44,6.8286]
[1728853702809,8.36623119,146.47,146.44,19.46480512]
[1728853703002,7.17790243,146.46,146.44,19.46480512]
[1728853703206,7.17790243,146.45,146.44,19.46480512]
[1728853705721,7.18174878,146.45,146.44,19.46480512]
[1728853709626,2.76221107,146.45,146.44,19.46480512]
[1728853711620,2.76221107,146.45,146.44,43.24168912]
[1728853713224,1.188157,146.5,146.46,6.8275]
[1728853713405,4.41751603,146.49,146.46,6.8275]
[1728853713606,7.17846355,146.48,146.46,6.8275]
[1728853713927,7.17846355,146.47,146.46,6.8275]
[1728853718711,7.17846355,146.47,146.46,8.02668077]
[1728853719124,7.17846355,146.47,146.46,6.8275]
[1728853721039,2.76094752,146.47,146.46,6.8275]
[1728853721532,7.17354724,146.47,146.46,6.8275]
[1728853722314,2.76094752,146.47,146.46,6.8275]
[1728853722829,7.17311472,146.47,146.45,23.8981]
[1728853723030,2.76094752,146.46,146.45,23.8981]
[1728853724741,2.75742338,146.46,146.45,23.8981]
[1728853731621,7.16896742,146.46,146.45,23.8981]
[1728853731822,2.75742338,146.46,146.45,23.8981]
[1728853732260,2.75723227,146.46,146.45,23.8981]
[1728853739446,2.75723227,146.46,146.45,35.33446685]
[1728853741826,2.74605533,146.46,146.45,35.33446685]
[1728853742244,1.18827701,146.48,146.45,35.33446685]
[1728853742446,7.14006109,146.47,146.45,35.33446685]
[1728853742620,2.74617734,146.46,146.45,35.33446685]
[1728853744336,2.74617734,146.46,146.45,23.8981]
[1728853745553,2.74617734,146.46,146.45,35.33446685]
[1728853746455,2.74671332,146.46,146.45,35.33446685]
[1728853746657,2.74671332,146.46,146.42,17.0736]
[1728853746947,7.14124522,146.45,146.42,23.9032]
[1728853747151,2.74665479,146.44,146.42,23.9032]
[1728853747333,2.74665479,146.43,146.42,23.9032]
[1728853747742,2.74677441,146.43,146.42,23.9032]
[1728853749350,2.74677441,146.43,146.42,35.33956685]
[1728853750355,2.74712551,146.43,146.42,35.33956685]
[1728853757738,2.74887943,146.43,146.42,35.33956685]
[1728853763137,1.18840683,146.47,146.45,6.8282]
[1728853763458,7.15194678,146.46,146.45,6.8282]
[1728853763672,7.15194678,146.46,146.45,8.0276786]
[1728853765273,1.18840683,146.47,146.45,8.0276786]
[1728853765478,7.15290732,146.46,146.45,8.0276786]
[1728853765773,7.15290732,146.46,146.45,6.8282]
[1728853769154,7.15429411,146.46,146.45,6.8282]
[1728853773156,1.18840683,146.47,146.45,6.8282]
[1728853773476,7.15472563,146.46,146.45,6.8282]
[1728853776675,1.18840683,146.47,146.45,6.8282]
[1728853776872,7.15512759,146.46,146.45,6.8282]
[1728853778581,7.15512759,146.46,146.44,17.0712]
[1728853778757,7.15512759,146.45,146.44,23.8998]
[1728853780489,7.15549142,146.45,146.44,23.8998]
[1728853783963,1.18840683,146.47,146.44,23.8998]
[1728853786474,7.15571808,146.46,146.44,23.8998]
[1728853786680,7.15571808,146.45,146.44,23.8998]
[1728853800094,7.15571808,146.45,146.44,36.53581535]
[1728853800297,2.75219926,146.45,146.44,36.53581535]
[1728853801499,2.75219926,146.45,146.44,35.33616685]
[1728853804094,2.75219926,146.45,146.44,36.53548427]
[1728853805903,2.75219926,146.45,146.44,60.31236827]
[1728853813620,8.01446078,146.5,146.45,6.8279]
[1728853813905,2.75149311,146.49,146.46,1.19897471]
[1728853814107,7.15388208,146.48,146.46,1.19897471]
[1728853814291,7.15388208,146.47,146.46,1.19897471]
[1728853815509,7.15388208,146.47,146.45,18.26426685]
[1728853815807,7.15388208,146.46,146.45,18.26426685]
[1728853821011,2.75149311,146.46,146.45,18.26426685]
[1728853822192,2.75149311,146.46,146.45,19.46333225]
[1728853822913,2.75149311,146.46,146.45,18.26426685]
[1728853824420,2.75149311,146.46,146.45,19.46332966]
[1728853825516,8.01446078,146.5,146.45,19.46332966]
[1728853825726,2.75143154,146.46,146.45,18.26426685]
[1728853829413,7.15320712,146.46,146.45,18.26426685]
[1728853829629,23.776884,146.55,146.45,18.26426685]
[1728853829919,1.18820832,146.51,146.45,18.26426685]
[1728853830103,1.19000247,146.54,146.45,18.26426685]
[1728853830305,2.37820978,146.54,146.45,18.26426685]
[1728853830513,2.37820978,146.54,146.44,17.0712]
[1728853830514,17.0619,146.53,146.44,17.0712]
[1728853830707,6.8266,146.49,146.44,35.33606685]
[1728853831114,6.8266,146.49,146.44,23.8997]
[1728853831299,6.8266,146.49,146.44,35.33606685]
[1728853833819,1.19000247,146.52,146.45,12.80171527]
[1728853834005,6.8259,146.5,146.46,18.26406685]
[1728853834206,6.8259,146.5,146.47,1.36525149]
[1728853834845,6.8259,146.5,146.46,6.8277]
[1728853835724,6.8259,146.5,146.45,18.26446685]
[1728853839729,6.8259,146.5,146.46,1.36527347]
[1728853841132,6.8259,146.5,146.45,18.26446685]
[1728853841535,2.40587627,146.49,146.45,18.26446685]
[1728853841728,2.40587627,146.48,146.45,18.26446685]
[1728853841917,2.40587627,146.47,146.45,18.26446685]
[1728853842121,2.40587627,146.46,146.45,18.26446685]
[1728853845038,2.40587627,146.46,146.45,6.8281]
[1728853849743,2.40651212,146.46,146.45,6.8281]
[1728853851938,2.40651212,146.46,146.45,19.62976572]
[1728853853249,2.40651212,146.46,146.45,18.26446685]
[1728853853759,2.40651212,146.46,146.45,19.62977104]
[1728853854349,2.40651212,146.46,146.45,18.26446685]
[1728853856031,2.40651212,146.46,146.45,19.62977145]
[1728853856658,2.40651212,146.46,146.45,18.26446685]
[1728853857647,2.40651212,146.46,146.45,19.62976782]
[1728853857849,6.8259,146.5,146.45,19.62976782]
[1728853858058,2.4074029,146.49,146.45,19.62976782]
[1728853858231,2.4074029,146.48,146.45,19.62976782]
[1728853858545,2.4074029,146.47,146.45,19.62976782]
[1728853858852,2.4074029,146.46,146.45,18.26446685]
[1728853859426,2.4074029,146.46,146.45,19.62976989]
[1728853859867,2.4074029,146.46,146.45,18.26446685]
[1728853861070,6.8259,146.5,146.45,18.26446685]
[1728853861255,2.40741734,146.49,146.45,18.26446685]
[1728853861563,2.40741734,146.48,146.46,1.36528295]
[1728853861865,2.40741734,146.47,146.46,1.36528295]
[1728853862567,2.40741734,146.47,146.45,18.26446685]
[1728853862754,2.40741734,146.46,146.45,18.26446685]
[1728853863163,2.40741734,146.46,146.45,19.62977069]
[1728853866056,2.40741734,146.46,146.45,18.26446685]
[1728853869283,2.40741734,146.46,146.45,19.62971851]
[1728853871482,2.40741734,146.46,146.45,18.26446685]
[1728853873162,2.40741734,146.46,146.45,19.6297204]
[1728853874382,2.40741734,146.46,146.45,18.26446685]
[1728853877558,1.18822322,146.51,146.46,20.0]
[1728853877759,2.40719222,146.5,146.48,11.43636685]
[1728853877964,8.01193084,146.54,146.5,6.8259]
[1728853878165,2.40720574,146.53,146.51,1.36494281]
[1728853878373,2.40720574,146.52,146.51,1.36494281]
[1728853879776,2.40720574,146.52,146.5,8.19081012]
[1728853879976,2.40720574,146.51,146.5,6.8259]
[1728853880172,2.40720574,146.51,146.48,11.43636685]
[1728853880479,2.40579858,146.5,146.48,18.26276685]
[1728853880996,2.40578452,146.49,146.48,18.26276685]
[1728853883085,2.40578452,146.49,146.48,19.62775307]
[1728853884063,6.8246,146.53,146.48,12.80135307]
[1728853884397,2.40455964,146.52,146.49,18.26256685]
[1728853884698,2.40455985,146.51,146.5,1.36496584]
[1728853885286,2.40455985,146.51,146.5,19.62723269]
[1728853886376,2.40455985,146.51,146.5,18.26226685]
[1728853891481,29.20093183,146.56,146.5,11.43636685]
[1728853891674,2.40192976,146.55,146.51,6.8253]
[1728853891881,2.40192976,146.54,146.51,6.8253]
[1728853892080,2.40192976,146.53,146.51,6.8253]
[1728853892307,2.40192976,146.52,146.51,6.8253]
[1728853892613,2.40192976,146.52,146.51,19.62647884]
[1728853893313,2.40165304,146.52,146.51,19.62647884]
[1728853895215,9.20093183,146.56,146.51,19.62647884]
[1728853895393,2.40094206,146.55,146.51,19.62647884]
[1728853895594,2.40094206,146.54,146.51,19.62647884]
[1728853895897,2.40094206,146.53,146.51,8.19011199]
[1728853896098,9.20093183,146.56,146.52,1.36479746]
[1728853896395,2.40069513,146.55,146.52,1.36479746]
[1728853896595,2.40069513,146.54,146.52,1.36479746]
[1728853896793,2.40071795,146.53,146.52,1.36479746]
[1728853900918,2.40015374,146.53,146.52,1.36479746]
[1728853902926,2.40015374,146.53,146.51,6.8253]
[1728853903125,9.20093183,146.56,146.51,6.8253]
[1728853903423,2.39995131,146.55,146.51,6.8253]
[1728853903602,2.39995131,146.54,146.51,6.8253]
[1728853903807,2.39995131,146.53,146.52,1.36479329]
[1728853905128,2.39994222,146.53,146.52,1.36479329]
[1728853905522,4.79988809,146.53,146.52,1.36479329]
[1728853905704,2.39994587,146.53,146.52,1.36479329]
[1728853906729,9.20093183,146.56,146.52,1.36479329]
[1728853908434,2.40002253,146.55,146.52,1.36479329]
[1728853908614,2.40002253,146.54,146.52,1.36479329]
[1728853908813,2.40002253,146.53,146.52,1.36479329]
[1728853911027,2.4001185,146.53,146.52,1.36479329]
[1728853914634,2.4001185,146.53,146.51,18.26166685]
[1728853914948,9.20093183,146.56,146.51,18.26166685]
[1728853915111,2.40029784,146.55,146.51,18.26166685]
[1728853915313,2.40029784,146.54,146.51,18.26166685]
[1728853915513,2.40029784,146.53,146.52,1.36479679]
[1728853919641,2.40090222,146.53,146.52,1.36479679]
[1728853922535,9.20093183,146.56,146.52,1.36479679]
[1728853922748,2.4011395,146.55,146.52,1.36479679]
[1728853922922,2.4011395,146.54,146.52,1.36479679]
[1728853923123,2.4011395,146.53,146.52,1.36479679]
[1728853923516,2.4011395,146.53,146.51,18.26166685]
[1728853923723,9.20093183,146.56,146.51,18.26166685]
[1728853923934,2.40128534,146.55,146.51,18.26166685]
[1728853924147,2.40128534,146.54,146.51,18.26166685]
[1728853924423,2.40128534,146.53,146.51,18.26166685]
[1728853924642,9.20093183,146.56,146.51,18.26166685]
[1728853924853,2.40139831,146.55,146.51,18.26166685]
[1728853925032,2.40139831,146.54,146.51,18.26166685]
[1728853925332,2.40139831,146.53,146.51,18.26166685]
[1728853925528,2.40139831,146.52,146.51,18.26166685]
[1728853939044,9.20093183,146.56,146.51,18.26166685]
[1728853939243,2.40728065,146.55,146.51,18.26166685]
[1728853939540,2.40728065,146.54,146.51,18.26166685]
[1728853939751,2.40728065,146.53,146.51,18.26166685]
[1728853939949,2.40728065,146.52,146.51,18.26166685]
[1728853944169,2.40728065,146.52,146.5,6.8258]
[1728853944330,6.8237,146.55,146.49,17.0654]
[1728853944331,2.40728065,146.51,146.49,17.0654]
[1728853944537,2.40728065,146.5,146.49,17.0654]
[1728853944744,2.40728065,146.5,146.49,23.8918]
[1728853945658,2.40728065,146.5,146.49,25.25680258]
[1728853946836,8.01212036,146.54,146.49,25.25680258]
[1728853947067,2.40822796,146.53,146.49,25.25680258]
[1728853947242,2.40822796,146.52,146.49,25.25680258]
[1728853947432,2.40822796,146.51,146.49,25.25680258]
[1728853947642,2.40822796,146.5,146.49,25.25680258]
[1728853948563,2.40822796,146.5,146.49,36.69316943]
[1728853950949,2.40752658,146.5,146.49,36.69316943]
[1728853954466,2.40752658,146.5,146.49,35.32816685]
[1728853954866,2.40694018,146.5,146.49,35.32816685]
[1728853955565,2.40694018,146.5,146.48,6.8268]
[1728853955768,2.40694018,146.49,146.48,26.8268]
[1728853962473,1.19000247,146.53,146.48,20.0]
[1728853962672,2.4053821,146.52,146.49,6.8262]
[1728853962972,2.4053821,146.51,146.47,20.0]
[1728853963164,2.4053821,146.5,146.48,6.8267]
[1728853963351,2.4053821,146.49,146.48,6.8267]
[1728853964886,2.4053821,146.49,146.48,18.26306685]
[1728853966476,2.40471792,146.49,146.48,18.26316685]
[1728853966779,1.19000247,146.53,146.49,6.8262]
[1728853966955,2.40471866,146.52,146.49,8.1913014]
[1728853967284,2.40471866,146.51,146.49,8.1913014]
[1728853967461,2.40471866,146.5,146.49,8.1913014]
[1728853969982,2.40471866,146.5,146.49,6.8262]
[1728853971075,2.40471866,146.5,146.49,8.19119416]
[1728853971383,2.40471866,146.5,146.49,6.8262]
[1728853972859,2.37802283,146.54,146.5,6.8257]
[1728853973086,2.40448812,146.53,146.5,6.8257]
[1728853973270,2.40448812,146.52,146.5,6.8257]
[1728853973469,2.40448812,146.51,146.5,6.8257]
[1728853974664,2.40445133,146.51,146.5,6.8257]
[1728853977886,2.40445133,146.51,146.5,18.26206685]
[1728853979891,2.40445133,146.51,146.5,6.8257]
[1728853982094,2.40471201,146.51,146.5,6.8257]
[1728853990688,2.40471201,146.51,146.5,18.26206685]
[1728853995406,2.40471201,146.51,146.5,38.26206685]
[1728853998997,2.40471201,146.51,146.5,18.26206685]
[1728853999312,2.40471201,146.51,146.5,38.26206685]
[1728854005715,2.40593769,146.51,146.5,31.43636685]
[1728854005883,2.40593769,146.51,146.5,38.26226685]
[1728854006083,2.40593769,146.51,146.5,31.43636685]
[1728854006302,2.40593769,146.51,146.5,26.8259]
[1728854009691,2.40578619,146.51,146.5,20.0]
[1728854011420,2.40578619,146.51,146.5,26.8259]
[1728854011924,2.40578619,146.51,146.5,38.26226685]
[1728854014921,2.40578619,146.51,146.5,26.8259]
[1728854015118,2.40578619,146.51,146.5,28.19088633]
[1728854015312,2.40578619,146.51,146.5,26.8259]
[1728854016427,2.40578619,146.51,146.5,28.1908014]
[1728854017526,9.20129331,146.55,146.51,6.8253]
[1728854017825,2.40572669,146.54,146.51,6.8253]
[1728854018025,2.40572669,146.53,146.51,6.8253]
[1728854018201,2.40572669,146.52,146.51,6.8253]
[1728854021825,2.40572669,146.52,146.51,8.19019845]
[1728854024531,2.40572669,146.52,146.51,8.1901975]
[1728854025227,2.37759331,146.55,146.52,6.8249]
[1728854025424,9.2307274,146.54,146.49,23.8914]
[1728854025597,3.59672987,146.53,146.49,23.8914]
[1728854025803,2.4067274,146.52,146.5,6.8257]
[1728854026101,2.4067274,146.51,146.5,6.8257]
[1728854029407,2.37795837,146.54,146.5,6.8257]
[1728854029630,2.4072482,146.53,146.5,6.8257]
[1728854029823,2.4072482,146.52,146.5,6.8257]
[1728854030021,2.4072482,146.51,146.5,6.8257]
[1728854030713,2.4072482,146.51,146.49,23.8917]
[1728854030916,2.4072482,146.5,146.49,23.8917]
[1728854032809,9.20205837,146.54,146.49,23.8917]
[1728854033236,2.40687125,146.53,146.49,23.8917]
[1728854033538,2.40687125,146.52,146.49,23.8917]
[1728854033840,2.40687125,146.51,146.49,23.8917]
[1728854034037,2.40687125,146.5,146.49,23.8917]
[1728854036936,9.20205837,146.54,146.49,17.0654]
[1728854037140,2.40646413,146.53,146.5,6.8258]
[1728854037348,2.40646413,146.52,146.5,6.8258]
[1728854037641,2.40646413,146.51,146.5,6.8258]
[1728854041033,2.37795837,146.54,146.5,6.8258]
[1728854041259,2.40646157,146.53,146.5,6.8258]
[1728854041446,2.40646157,146.52,146.5,6.8258]
[1728854041621,2.40646157,146.51,146.5,6.8258]
[1728854042721,2.40646157,146.51,146.49,23.8916]
[1728854042921,2.40646157,146.5,146.49,23.8916]
[1728854043540,9.20195837,146.54,146.49,23.8916]
[1728854043721,2.40627816,146.53,146.49,25.25666611]
[1728854043918,2.40627816,146.52,146.49,25.25666611]
[1728854044243,2.40627816,146.51,146.49,23.8916]
[1728854044546,2.40627816,146.5,146.49,23.8916]
[1728854047851,2.40627816,146.5,146.49,17.0654]
[1728854051258,2.40559357,146.5,146.49,17.0654]
[1728854051560,2.40559357,146.5,146.48,6.8267]
[1728854051757,2.40559357,146.49,146.47,6.8272]
[1728854052061,2.40559357,146.48,146.47,6.8272]
[1728854055153,2.40559357,146.48,146.46,17.0688]
[1728854055335,2.40559357,146.47,146.46,23.8964]
[1728854057762,2.40559357,146.47,146.46,17.0688]
[1728854057937,2.40559357,146.47,146.44,6.8286]
[1728854058260,2.40559357,146.46,146.44,6.8286]
[1728854058451,8.01660247,146.49,146.44,6.8286]
[1728854058648,2.40343462,146.48,146.44,6.8286]
[1728854058953,3.59343709,146.47,146.44,6.8286]
[1728854059145,2.40343462,146.46,146.44,6.8286]
[1728854059344,2.40343462,146.45,146.44,6.8286]
[1728854060348,1.19000247,146.47,146.44,6.8286]
[1728854060548,2.40225377,146.46,146.44,6.8286]
[1728854060751,1.19000247,146.47,146.44,6.8286]
[1728854060944,2.40225377,146.46,146.44,6.8286]
[1728854061166,1.19000247,146.47,146.44,6.8286]
[1728854061349,2.4022484,146.46,146.44,6.8286]
[1728854061549,1.19000247,146.47,146.44,6.8286]
[1728854061758,2.40176462,146.46,146.44,6.8286]
[1728854061958,1.19000247,146.47,146.44,6.8286]
[1728854062160,2.40176451,146.46,146.44,6.8286]
[1728854062463,1.19000247,146.47,146.44,6.8286]
[1728854062669,2.40134611,146.46,146.44,6.8286]
[1728854062963,1.19000247,146.47,146.44,6.8286]
[1728854063137,2.40134629,146.46,146.44,6.8286]
[1728854063341,8.01730247,146.47,146.43,23.9018]
[1728854063534,2.40096034,146.46,146.43,23.9018]
[1728854063776,2.40096034,146.45,146.43,23.9018]
[1728854063955,8.01730247,146.47,146.43,23.9018]
[1728854064271,2.40095977,146.46,146.43,23.9018]
[1728854064462,8.01730247,146.47,146.43,23.9018]
[1728854064766,2.40052384,146.46,146.43,23.9018]
[1728854064965,8.01730247,146.47,146.43,23.9018]
[1728854065265,3.59052907,146.46,146.43,17.0727]
[1728854065449,1.19000247,146.46,146.43,17.0727]
[1728854066457,2.37859953,146.46,146.43,17.0727]
[1728854066762,2.39974773,146.45,146.43,17.0727]
[1728854066947,2.37859953,146.46,146.43,17.0727]
[1728854067153,2.39976442,146.45,146.43,17.0727]
[1728854067344,2.37859953,146.46,146.43,17.0727]
[1728854068766,9.227666,146.45,146.38,6.0616]
[1728854068967,3.58906847,146.44,146.4,6.8305]
[1728854069175,2.399066,146.43,146.4,6.8305]
[1728854069478,8.01870247,146.44,146.39,6.831]
[1728854069769,2.39806324,146.43,146.39,6.831]
[1728854069968,8.01870247,146.44,146.39,6.831]
[1728854070167,2.39806032,146.43,146.39,6.831]
[1728854070370,1.19000247,146.42,146.39,6.831]
[1728854070580,6.8292,146.43,146.39,6.831]
[1728854070751,1.19000247,146.42,146.38,6.8315]
[1728854072552,8.01970247,146.42,146.37,38.9251]
[1728854072773,8.01970247,146.42,146.36,6.8323]
[1728854072774,6.8306,146.4,146.36,6.8323]
[1728854072977,1.19000247,146.39,146.34,17.083]
[1728854073186,6.8316,146.38,146.34,17.083]
[1728854073488,1.19000247,146.37,146.34,17.083]
[1728854074259,6.8311,146.39,146.34,23.9163]
[1728854074563,1.19000247,146.38,146.34,23.9163]
[1728854080758,6.8315,146.38,146.34,23.9163]
[1728854080958,1.19000247,146.37,146.34,23.9163]
[1728854082288,30.609684,146.36,146.31,6.8343]
[1728854082456,1.19000247,146.35,146.31,6.8343]
[1728854083071,8.02290247,146.35,146.3,30.4302]
[1728854084292,8.02290247,146.35,146.3,23.9227]
[1728854084784,23.776884,146.34,146.3,17.0876]
[1728854084989,1.19000247,146.33,146.3,17.0876]
[1728854086892,2.37953949,146.33,146.3,17.0876]
[1728854092389,1.18953702,146.33,146.31,6.8346]
[1728854099895,1.18953702,146.33,146.3,29.89079211]
[1728854100105,1.18953702,146.33,146.32,6.8343]
[1728854100288,1.19000247,146.35,146.32,6.8343]
[1728854100489,2.37932272,146.35,146.32,6.8343]
[1728854104507,2.37932272,146.35,146.31,6.8346]
[1728854109107,46.12208647,146.34,146.22,15.7809]
[1728854109417,6.8356,146.3,146.25,6.8375]
[1728854109575,1.19000247,146.29,146.25,6.8375]
[1728854113205,1.19000247,146.29,146.24,17.0945]
[1728854113416,23.776884,146.32,146.28,6.8361]
[1728854113703,1.19000247,146.31,146.28,6.8361]
[1728854114802,6.8335,146.34,146.29,19.63910458]
[1728854114985,8.02390247,146.33,146.28,17.0897]
[1728854115184,6.8344,146.32,146.28,17.0897]
[1728854115401,1.19000247,146.31,146.28,17.0897]
[1728854115790,6.8344,146.32,146.28,23.9257]
[1728854116099,6.8339,146.33,146.28,23.9257]
[1728854116336,1.19000247,146.32,146.28,23.9257]
[1728854117292,6.8339,146.33,146.29,8.20272301]
[1728854117606,30.610284,146.34,146.29,8.20272301]
[1728854117780,1.19000247,146.33,146.29,6.8357]
[1728854119107,8.02232025,146.35,146.3,6.8351]
[1728854119314,1.19000247,146.34,146.3,6.8351]
[1728854120730,1.18941274,146.33,146.3,6.8351]
[1728854121132,1.18941274,146.33,146.3,8.20197141]
[1728854121829,1.18941274,146.33,146.3,12.80323826]
[1728854122132,8.02200247,146.37,146.32,6.8343]
[1728854122432,1.1893213,146.36,146.32,6.8343]
[1728854122633,2.37932377,146.36,146.32,8.20097675]
[1728854122818,2.37932377,146.36,146.32,6.8343]
[1728854123844,1.1893213,146.36,146.31,11.43636685]
[1728854124132,1.1893213,146.36,146.32,28.52146685]
[1728854124430,1.1893213,146.36,146.34,6.8331]
[1728854127611,1.1893213,146.36,146.33,6.8338]
[1728854130236,2.39377719,146.35,146.34,6.8333]
[1728854130544,2.39377719,146.35,146.34,8.19982767]
[1728854131434,2.39452905,146.35,146.34,8.19982767]
[1728854131640,2.39463156,146.35,146.34,12.80289452]
[1728854131821,2.39463156,146.35,146.34,19.63629452]
[1728854133319,2.39463156,146.35,146.34,39.63629452]
[1728854133525,1.19000247,146.41,146.37,6.832]
[1728854133740,6.23361615,146.4,146.37,6.832]
[1728854133940,6.23361615,146.39,146.37,6.832]
[1728854134120,2.39754467,146.38,146.37,6.832]
[1728854135225,2.39754467,146.38,146.37,8.19820501]
[1728854135518,2.39754467,146.38,146.37,18.26836685]
[1728854135725,2.39754467,146.38,146.37,19.63451526]
[1728854136027,1.18900197,146.41,146.39,6.831]
[1728854136345,6.23118535,146.4,146.39,6.831]
[1728854136727,6.23118535,146.4,146.39,18.26736685]
[1728854138337,2.39660975,146.4,146.39,18.26736685]
[1728854141340,2.37855907,146.45,146.4,6.8301]
[1728854141541,6.22429216,146.44,146.41,12.80215574]
[1728854141849,6.22429216,146.43,146.41,12.80215574]
[1728854142050,6.22429216,146.42,146.41,12.80215574]
[1728854142347,6.22429216,146.42,146.41,11.43636685]
[1728854142649,6.22290562,146.42,146.4,18.26646685]
[1728854142852,2.39342524,146.41,146.4,18.26646685]
[1728854143756,8.0168566,146.45,146.4,18.26646685]
[1728854143940,6.22160511,146.44,146.41,11.43636685]
[1728854144128,2.39292504,146.43,146.41,11.43636685]
[1728854144334,8.0168566,146.45,146.41,11.43636685]
[1728854144533,2.39202525,146.44,146.41,11.43636685]
[1728854144733,2.39202525,146.43,146.41,11.43636685]
[1728854144948,8.0168566,146.45,146.41,12.80214458]
[1728854145145,2.39202525,146.44,146.41,12.80214458]
[1728854145459,8.0168566,146.45,146.41,12.80214458]
[1728854145634,2.39116257,146.44,146.41,12.80214458]
[1728854145834,8.0168566,146.45,146.41,12.80214458]
[1728854146035,2.39116257,146.44,146.41,12.80214458]
[1728854146236,8.0168566,146.45,146.41,12.80214458]
[1728854146436,2.39051313,146.44,146.41,12.80214458]
[1728854146759,8.0168566,146.45,146.41,12.80214458]
[1728854146961,2.39036622,146.44,146.41,19.63224458]
[1728854147145,8.0168566,146.45,146.41,19.63224458]
[1728854147336,2.38963698,146.44,146.41,19.63224458]
[1728854147635,8.0168566,146.45,146.41,19.63224458]
[1728854147838,2.38963698,146.44,146.41,19.63224458]
[1728854148040,8.0168566,146.45,146.41,19.63224458]
[1728854149145,8.0168566,146.45,146.42,1.36576854]
[1728854150163,8.0168566,146.45,146.41,18.26646685]
[1728854150466,1.1885566,146.45,146.42,1.36573226]
[1728854151261,1.1885566,146.45,146.42,11.43636685]
[1728854152465,1.1885566,146.45,146.41,18.26646685]
[1728854165663,8.0168566,146.45,146.4,6.8304]
[1728854165867,1.19000247,146.44,146.4,18.26676685]
[1728854166265,8.0168566,146.45,146.4,18.26676685]
[1728854166475,8.0168566,146.45,146.4,6.8304]